[Event "Charlotte Fall IM-C 2023"]
[Site "Charlotte"]
[Date "2023.11.19"]
[Round "4.1"]
[White "Vemparala, Nikash"]
[Black "Bhagat Kush"]
[Result "0-1"]
[ECO "B56"]
[WhiteElo "2257"]
[BlackElo "2209"]
[Annotator "RC"]
[PlyCount "114"]
[EventDate "2023.11.17"]
[EventType "tourn"]
[EventCountry "USA"]
[SourceTitle "playchess.com"]
[Source "ChessBase"]
[SourceQuality "1"]
[TimeControl "5400+30"]

1. e4 {[%emt 0:00:42]} c5 {[%emt 0:00:07]} 2. Nf3 {[%emt 0:00:06]} d6 {[%emt 0:00:05]} 3. d4 {[%emt 0:00:09]} cxd4 {[%emt 0:00:06]} 4. Nxd4 {[%emt 0:00:04]} Nf6 {[%emt 0:00:07]} 5. Nc3 {[%emt 0:00:06]} Nc6 {[%emt 0:00:04]} 6. f3 {[%emt 0:00:34]} e5 {[%emt 0:00:44]} 7. Nb3 {[%emt 0:00:06]} Be6 {[%emt 0:00:22]} 8. Nd5 {[%emt 0:00:42]} Be7 {[%emt 0:00:39]} 9. Be3 {[%emt 0:03:00]} O-O {[%emt 0:01:41]} 10. Qd2 {[%emt 0:01:18]} a5 {[%emt 0:07:18]} 11. Nb6 {[%emt 0:18:30]} a4 {[%emt 0:16:33]} 12. Nxa8 {[%emt 0:10:23]} Qxa8 {[%emt 0:01:09]} 13. Nc1 {[%emt 0:03:59]} a3 {[%emt 0:02:46]} 14. c3 {[%emt 0:12:07]} d5 {[%emt 0:03:46]} 15. Qc2 {[%emt 0:12:36]} Rc8 {[%emt 0:28:51]} 16. Bd3 {[%emt 0:08:43]} d4 {[%emt 0:10:14]} 17. Bd2 {[%emt 0:00:55]} Qa7 {[%emt 0:08:11]} 18. c4 {[%emt 0:07:40]} Nb4 {[%emt 0:00:14]} 19. Qb1 {[%emt 0:00:44]} Bxc4 {[%emt 0:01:49]} 20. b3 {[%emt 0:05:17]} Bxd3 {[%emt 0:02:15]} 21. Nxd3 {[%emt 0:00:11]} Nc2+ {[%emt 0:00:17]} 22. Ke2 {[%emt 0:00:05]} Nxa1 {[%emt 0:00:10]} 23. Qxa1 {[%emt 0:00:02]} Qa6 {[%emt 0:04:23]} 24. Rc1 {[%emt 0:00:20]} Rc6 {[%emt 0:00:43]} 25. Qb1 {[%emt 0:01:41]} Nd7 {[%emt 0:01:30]} 26. b4 {[%emt 0:00:44]} Nb6 {[%emt 0:06:17]} 27. b5 {[%emt 0:02:14]} Rxc1 {[%emt 0:00:06]} 28. Bxc1 {[%emt 0:00:12]} Qa4 {[%emt 0:00:38]} 29. Nxe5 {[%emt 0:01:33]} Nc4 {[%emt 0:00:54]} 30. Nd3 {[%emt 0:00:49]} Nd6 {[%emt 0:00:48]} 31. Bd2 {[%emt 0:05:11]} Qxb5 {[%emt 0:02:10]} 32. Qxb5 {[%emt 0:00:51]} Nxb5 {[%emt 0:00:01]} 33. Nb4 {[%emt 0:00:35]} Bd6 {[%emt 0:01:13]} 34. h3 {[%emt 0:00:25]} Nc3+ {[%emt 0:00:21]} 35. Bxc3 {[%emt 0:00:18]} dxc3 {[%emt 0:00:01]} 36. Nd5 {[%emt 0:01:38]} b5 {[%emt 0:00:01]} 37. Kd3 {[%emt 0:02:27]} b4 {[%emt 0:00:01]} 38. Kc2 {[%emt 0:00:05]} f6 {[%emt 0:00:06]} 39. f4 {[%emt 0:01:00]} Kf7 {[%emt 0:00:28]} 40. f5 {[%emt 0:00:01]} h5 {[%emt 0:01:20]} 41. g4 {[%emt 0:01:00]} hxg4 {[%emt 0:00:17]} 42. hxg4 {[%emt 0:00:02]} Kg8 {[%emt 0:00:40]} 43. Ne3 {[%emt 0:01:57]} Kh7 {[%emt 0:00:16]} 44. g5 {[%emt 0:00:33]} fxg5 {[%emt 0:00:32]} 45. Ng4 {[%emt 0:00:01]} Kg8 {[%emt 0:00:36]} 46. Kb3 {[%emt 0:00:52]} Kf7 {[%emt 0:00:22]} 47. Kc2 {[%emt 0:00:11]} Ke7 {[%emt 0:00:41]} 48. Kb3 {[%emt 0:00:14]} Bf4 {[%emt 0:00:52]} 49. Nf2 {[%emt 0:00:49]} Be3 {[%emt 0:01:09]} 50. Nd3 {[%emt 0:00:25]} g4 {[%emt 0:00:55]} 51. Nxb4 {[%emt 0:00:04]} Bd2 {[%emt 0:00:11]} 52. e5 {[%emt 0:00:36]} g3 {[%emt 0:00:18]} 53. Nd5+ {[%emt 0:00:09]} Kd8 {[%emt 0:00:15]} 54. e6 {[%emt 0:01:04]} g2 {[%emt 0:00:06]} 55. e7+ {[%emt 0:00:37]} Ke8 {[%emt 0:00:13]} 56. f6 {[%emt 0:00:08]} gxf6 {[%emt 0:00:05]} 57. Nxf6+ {[%emt 0:00:24]} Kxe7 {[%emt 0:00:08]} 0-1

[Event "Charlotte Fall IM-C 2023"]
[Site "Charlotte"]
[Date "2023.11.19"]
[Round "4.3"]
[White "Lima, Darcy"]
[Black "Nandhakumar, Vaseegaran"]
[Result "1-0"]
[ECO "E63"]
[WhiteElo "2405"]
[BlackElo "2177"]
[Annotator "RC"]
[PlyCount "71"]
[EventDate "2023.11.17"]
[EventType "tourn"]
[EventCountry "USA"]
[SourceTitle "playchess.com"]
[Source "ChessBase"]
[SourceQuality "1"]
[TimeControl "5400+30"]

1. d4 {[%emt 0:01:08]} g6 {[%emt 0:00:13]} 2. c4 {[%emt 0:00:17]} Bg7 {[%emt 0:00:22]} 3. g3 {[%emt 0:00:22]} Nf6 {[%emt 0:00:15]} 4. Bg2 {[%emt 0:00:05]} O-O {[%emt 0:00:07]} 5. Nc3 {[%emt 0:00:06]} d6 {[%emt 0:00:13]} 6. h3 {[%emt 0:00:10]} Nc6 {[%emt 0:00:27]} 7. Nf3 {[%emt 0:01:45]} a6 {[%emt 0:00:19]} 8. e4 {[%emt 0:00:42]} Rb8 {[%emt 0:01:24]} 9. O-O {[%emt 0:00:15]} b5 {[%emt 0:00:07]} 10. d5 {[%emt 0:00:31]} Na5 {[%emt 0:00:24]} 11. cxb5 {[%emt 0:00:07]} axb5 {[%emt 0:00:05]} 12. b4 {[%emt 0:00:15]} Nc4 {[%emt 0:01:25]} 13. Nd4 {[%emt 0:00:08]} Bd7 {[%emt 0:00:54]} 14. a4 {[%emt 0:03:37]} bxa4 {[%emt 0:03:55]} 15. b5 {[%emt 0:00:12]} Nb6 {[%emt 0:03:15]} 16. Qd3 {[%emt 0:02:57]} e6 {[%emt 0:02:27]} 17. Be3 {[%emt 0:00:49]} exd5 {[%emt 0:01:25]} 18. exd5 {[%emt 0:00:10]} Ra8 {[%emt 0:04:09]} 19. Nc6 {[%emt 0:05:34]} Bxc6 {[%emt 0:05:47]} 20. bxc6 {[%emt 0:00:12]} Ne8 {[%emt 0:14:07]} 21. Ra2 {[%emt 0:03:32]} Bxc3 {[%emt 0:05:09]} 22. Qxc3 {[%emt 0:01:33]} f5 {[%emt 0:00:47]} 23. Rb1 {[%emt 0:07:41]} Rf7 {[%emt 0:03:40]} 24. Rb5 {[%emt 0:05:15]} g5 {[%emt 0:08:27]} 25. Qb4 {[%emt 0:06:43]} f4 {[%emt 0:08:16]} 26. Bxb6 {[%emt 0:05:42]} cxb6 {[%emt 0:00:25]} 27. Rxb6 {[%emt 0:03:38]} Qe7 {[%emt 0:07:02]} 28. Kh2 {[%emt 0:03:47]} h5 {[%emt 0:07:32]} 29. Rxa4 {[%emt 0:07:06]} Rxa4 {[%emt 0:04:33]} 30. Qxa4 {[%emt 0:00:06]} f3 {[%emt 0:01:07]} 31. Bf1 {[%emt 0:00:10]} Nf6 {[%emt 0:04:46]} 32. Qd4 {[%emt 0:10:37]} h4 {[%emt 0:11:39]} 33. gxh4 {[%emt 0:06:08]} gxh4 {[%emt 0:01:35]} 34. Rb8+ {[%emt 0:00:46]} Kg7 {[%emt 0:00:22]} 35. Bd3 {[%emt 0:04:02]} Qe5+ {[%emt 0:00:49]} 36. Qxe5 {[%emt 0:00:17]} 1-0

[Event "Charlotte Fall IM-C 2023"]
[Site "Charlotte"]
[Date "2023.11.19"]
[Round "4.4"]
[White "Guo, Ethan"]
[Black "Graif, William"]
[Result "0-1"]
[ECO "C06"]
[WhiteElo "2026"]
[BlackElo "2289"]
[Annotator "RC"]
[PlyCount "84"]
[EventDate "2023.11.17"]
[EventType "tourn"]
[EventCountry "USA"]
[SourceTitle "playchess.com"]
[Source "ChessBase"]
[SourceQuality "1"]
[TimeControl "5400+30"]

1. e4 {[%emt 1:31:00]} e6 {[%emt 0:01:49]} 2. d4 {[%emt 0:00:00]} d5 {[%emt 0:00:04]} 3. Nd2 {[%emt 0:00:00]} Nc6 {[%emt 0:00:28]} 4. Ngf3 {[%emt 0:00:00]} Nf6 {[%emt 0:00:11]} 5. e5 {[%emt 0:00:00]} Nd7 {[%emt 0:00:13]} 6. Bd3 {[%emt 0:00:00]} Nb4 {[%emt 0:01:57]} 7. Be2 {[%emt 0:00:00]} c5 {[%emt 0:00:12]} 8. c3 {[%emt 0:00:00]} Nc6 {[%emt 0:00:11]} 9. Bd3 {[%emt 0:00:00]} Qb6 {[%emt 0:04:16]} 10. O-O {[%emt 0:00:00]} cxd4 {[%emt 0:03:40]} 11. cxd4 {[%emt 0:00:00]} Nxd4 {[%emt 0:00:31]} 12. Nxd4 {[%emt 0:00:00]} Qxd4 {[%emt 0:00:12]} 13. Nf3 {[%emt 0:00:00]} Qb6 {[%emt 0:10:56]} 14. a3 {[%emt 0:00:00]} Nc5 {[%emt 0:16:03]} 15. Bc2 {[%emt 0:00:00]} Bd7 {[%emt 0:10:01]} 16. b4 {[%emt 0:00:00]} Ne4 {[%emt 0:00:54]} 17. Be3 {[%emt 0:00:00]} Qa6 {[%emt 0:02:05]} 18. Nd4 {[%emt 0:00:00]} Rc8 {[%emt 0:11:33]} 19. Bd3 {[%emt 0:00:00]} b5 {[%emt 0:01:07]} 20. Rc1 {[%emt 0:00:00]} Rxc1 {[%emt 0:23:35]} 21. Qxc1 {[%emt 0:00:00]} f6 {[%emt 0:01:12]} 22. f3 {[%emt 0:00:00]} Ng5 {[%emt 0:00:32]} 23. f4 {[%emt 0:11:00]} Nf7 {[%emt 0:03:03]} 24. f5 {[%emt 0:00:00]} Nxe5 {[%emt 0:02:33]} 25. Bxb5 {[%emt 0:01:00]} Bxb5 {[%emt 0:01:05]} 26. Nxb5 {[%emt 0:00:00]} Qc6 {[%emt 0:03:51]} 27. Qxc6+ {[%emt 0:00:00]} Nxc6 {[%emt 0:00:00]} 28. Nc7+ {[%emt 0:00:00]} Kd7 {[%emt 0:01:00]} 29. Nxe6 {[%emt 0:00:00]} a5 {[%emt 0:01:11]} 30. b5 {[%emt 0:00:00]} Ne5 {[%emt 0:00:08]} 31. Rd1 {[%emt 0:00:00]} Bxa3 {[%emt 0:00:32]} 32. Rxd5+ {[%emt 0:00:00]} Ke7 {[%emt 0:00:32]} 33. b6 {[%emt 0:00:00]} Nc4 {[%emt 0:00:37]} 34. Bf4 {[%emt 0:00:00]} a4 {[%emt 0:00:42]} 35. Nd8 {[%emt 0:00:00]} Rxd8 {[%emt 0:00:23]} 36. Rxd8 {[%emt 0:00:00]} Kxd8 {[%emt 0:00:11]} 37. b7 {[%emt 0:00:00]} Bc5+ {[%emt 0:00:05]} 38. Kf1 {[%emt 0:00:00]} Ba7 {[%emt 0:00:09]} 39. b8=Q+ {[%emt 0:00:00]} Bxb8 {[%emt 0:00:04]} 40. Bxb8 {[%emt 0:00:00]} a3 {[%emt 0:00:25]} 41. Ba7 {[%emt 0:00:00]} Nd2+ {[%emt 0:00:41]} 42. Ke2 {[%emt 0:00:00]} Nb3 {[%emt 0:00:16]} 0-1

[Event "Charlotte Fall IM-C 2023"]
[Site "Charlotte"]
[Date "2023.11.19"]
[Round "4.5"]
[White "Wang, Isaac"]
[Black "Fierro Baquero, Martha L."]
[Result "1/2-1/2"]
[ECO "A56"]
[WhiteElo "2377"]
[BlackElo "2306"]
[Annotator "RC"]
[PlyCount "194"]
[EventDate "2023.11.17"]
[EventType "tourn"]
[EventCountry "USA"]
[SourceTitle "playchess.com"]
[Source "ChessBase"]
[SourceQuality "1"]
[TimeControl "5400+30"]

1. d4 {[%emt 0:00:06]} c5 {[%emt 0:00:14]} 2. d5 {[%emt 0:00:10]} e5 {[%emt 0:00:06]} 3. c4 {[%emt 0:00:10]} d6 {[%emt 0:00:17]} 4. Nc3 {[%emt 0:00:15]} Be7 {[%emt 0:10:20]} 5. Nf3 {[%emt 0:04:41]} Nf6 {[%emt 0:01:18]} 6. e4 {[%emt 0:00:45]} O-O {[%emt 0:00:10]} 7. h3 {[%emt 0:00:24]} Na6 {[%emt 0:00:55]} 8. g4 {[%emt 0:01:07]} Nc7 {[%emt 0:00:11]} 9. Bd3 {[%emt 0:01:22]} a6 {[%emt 0:00:43]} 10. a4 {[%emt 0:00:12]} Bd7 {[%emt 0:02:53]} 11. Be3 {[%emt 0:07:29]} Rb8 {[%emt 0:02:02]} 12. Qe2 {[%emt 0:04:41]} Nfe8 {[%emt 0:05:09]} 13. Rg1 {[%emt 0:03:44]} g6 {[%emt 0:00:30]} 14. Bh6 {[%emt 0:07:04]} Ng7 {[%emt 0:00:05]} 15. h4 {[%emt 0:08:14]} Qc8 {[%emt 0:04:03]} 16. Ng5 {[%emt 0:08:29]} b5 {[%emt 0:06:10]} 17. f3 {[%emt 0:07:48]} bxa4 {[%emt 0:06:31]} 18. Nxa4 {[%emt 0:01:19]} Qb7 {[%emt 0:01:36]} 19. Rg2 {[%emt 0:00:41]} Bxa4 {[%emt 0:04:45]} 20. Rxa4 {[%emt 0:00:05]} Qb3 {[%emt 0:00:03]} 21. Ra3 {[%emt 0:03:25]} Qb4+ {[%emt 0:00:06]} 22. Kf1 {[%emt 0:03:31]} Rb7 {[%emt 0:01:50]} 23. h5 {[%emt 0:05:37]} Rfb8 {[%emt 0:01:14]} 24. hxg6 {[%emt 0:02:53]} fxg6 {[%emt 0:02:25]} 25. Qe3 {[%emt 0:00:50]} Rf8 {[%emt 0:02:28]} 26. Kg1 {[%emt 0:03:46]} a5 {[%emt 0:16:38]} 27. Rf2 {[%emt 0:06:16]} Bxg5 {[%emt 0:06:19]} 28. Bxg5 {[%emt 0:00:46]} Nce8 {[%emt 0:00:13]} 29. Kg2 {[%emt 0:03:59]} Rbf7 {[%emt 0:01:16]} 30. Qd2 {[%emt 0:00:43]} Nf6 {[%emt 0:03:21]} 31. Qxb4 {[%emt 0:03:59]} axb4 {[%emt 0:00:10]} 32. Ra6 {[%emt 0:00:06]} Nge8 {[%emt 0:04:00]} 33. Be3 {[%emt 0:01:44]} Kg7 {[%emt 0:03:04]} 34. Bc2 {[%emt 0:01:47]} h6 {[%emt 0:01:24]} 35. Ba4 {[%emt 0:02:04]} g5 {[%emt 0:00:06]} 36. Kf1 {[%emt 0:01:13]} Re7 {[%emt 0:03:10]} 37. Ke2 {[%emt 0:00:23]} Rff7 {[%emt 0:00:42]} 38. Kd3 {[%emt 0:02:08]} Ra7 {[%emt 0:00:56]} 39. Rxa7 {[%emt 0:00:10]} Rxa7 {[%emt 0:00:06]} 40. Bc6 {[%emt 0:00:33]} Nc7 {[%emt 0:03:50]} 41. Rf1 {[%emt 0:00:27]} Ng8 {[%emt 0:00:49]} 42. b3 {[%emt 0:00:51]} Ne7 {[%emt 0:00:57]} 43. Ba4 {[%emt 0:00:08]} Ng6 {[%emt 0:00:26]} 44. Ke2 {[%emt 0:01:15]} Na8 {[%emt 0:01:09]} 45. Ra1 {[%emt 0:00:25]} Nb6 {[%emt 0:00:50]} 46. Bc1 {[%emt 0:00:52]} Nh4 {[%emt 0:00:43]} 47. Bb2 {[%emt 0:00:30]} Rf7 {[%emt 0:04:33]} 48. Rf1 {[%emt 0:00:28]} Nc8 {[%emt 0:00:09]} 49. Be8 {[%emt 0:00:24]} Re7 {[%emt 0:00:44]} 50. Bh5 {[%emt 0:00:23]} Ra7 {[%emt 0:00:18]} 51. Ra1 {[%emt 0:00:57]} Rxa1 {[%emt 0:00:44]} 52. Bxa1 {[%emt 0:00:01]} Kf8 {[%emt 0:00:27]} 53. Kf2 {[%emt 0:00:21]} Ne7 {[%emt 0:01:28]} 54. Bb2 {[%emt 0:00:10]} Nhg6 {[%emt 0:01:20]} 55. Bxg6 {[%emt 0:00:23]} Nxg6 {[%emt 0:00:05]} 56. Bc1 {[%emt 0:00:12]} Kf7 {[%emt 0:00:14]} 57. Bd2 {[%emt 0:00:24]} Kf6 {[%emt 0:00:06]} 58. Bc1 {[%emt 0:00:32]} Nh8 {[%emt 0:00:04]} 59. Ke2 {[%emt 0:00:09]} Nf7 {[%emt 0:00:05]} 60. Kd3 {[%emt 0:00:19]} Kg6 {[%emt 0:00:10]} 61. Be3 {[%emt 0:00:41]} Nd8 {[%emt 0:00:34]} 62. Bf2 {[%emt 0:00:39]} Nf7 {[%emt 0:01:55]} 63. Ke3 {[%emt 0:00:25]} h5 {[%emt 0:00:38]} 64. gxh5+ {[%emt 0:00:18]} Kxh5 {[%emt 0:00:04]} 65. Bg3 {[%emt 0:00:08]} Nh8 {[%emt 0:00:32]} 66. Kf2 {[%emt 0:00:21]} Ng6 {[%emt 0:00:05]} 67. Ke3 {[%emt 0:01:10]} Nh8 {[%emt 0:00:38]} 68. Kf2 {[%emt 0:00:16]} Nf7 {[%emt 0:00:23]} 69. Ke3 {[%emt 0:00:05]} Nd8 {[%emt 0:00:15]} 70. Kd3 {[%emt 0:00:14]} Nb7 {[%emt 0:00:06]} 71. Kd2 {[%emt 0:00:10]} Na5 {[%emt 0:00:30]} 72. Kc2 {[%emt 0:00:01]} Nb7 {[%emt 0:00:56]} 73. Kd3 {[%emt 0:00:28]} Nd8 {[%emt 0:02:22]} 74. Ke3 {[%emt 0:00:11]} Kg6 {[%emt 0:00:33]} 75. Kd3 {[%emt 0:00:06]} Nf7 {[%emt 0:00:28]} 76. Ke3 {[%emt 0:00:09]} Kf6 {[%emt 0:00:40]} 77. Ke2 {[%emt 0:00:18]} Nh8 {[%emt 0:00:42]} 78. Ke3 {[%emt 0:00:43]} Ng6 {[%emt 0:00:28]} 79. Ke2 {[%emt 0:00:31]} Kg7 {[%emt 0:00:14]} 80. Kf2 {[%emt 0:00:50]} Kh6 {[%emt 0:00:08]} 81. Ke2 {[%emt 0:00:24]} Kh5 {[%emt 0:00:54]} 82. Ke3 {[%emt 0:00:14]} Nf8 {[%emt 0:00:51]} 83. Ke2 {[%emt 0:00:18]} Nh7 {[%emt 0:00:22]} 84. Kf2 {[%emt 0:00:13]} Nf6 {[%emt 0:00:14]} 85. Ke3 {[%emt 0:00:17]} Kg6 {[%emt 0:00:49]} 86. Bh2 {[%emt 0:00:33]} Ng8 {[%emt 0:00:28]} 87. Bg3 {[%emt 0:00:08]} Nh6 {[%emt 0:00:05]} 88. Bh2 {[%emt 0:00:32]} Nf7 {[%emt 0:00:33]} 89. Bg3 {[%emt 0:00:56]} Kh5 {[%emt 0:00:38]} 90. Kf2 {[%emt 0:00:41]} Nd8 {[%emt 0:00:42]} 91. Ke3 {[%emt 0:00:08]} Nb7 {[%emt 0:00:34]} 92. Kd3 {[%emt 0:00:32]} Nd8 {[%emt 0:00:51]} 93. Ke3 {[%emt 0:00:07]} Nf7 {[%emt 0:00:27]} 94. Kf2 {[%emt 0:00:29]} Nh8 {[%emt 0:00:32]} 95. Ke2 {[%emt 0:00:24]} Ng6 {[%emt 0:00:09]} 96. Ke3 {[%emt 0:00:10]} Kh6 {[%emt 0:01:05]} 97. Kd3 Nf8 {[%emt 0:00:30]} 1/2-1/2

[Event "Charlotte Fall IM-C 2023"]
[Site "Charlotte"]
[Date "2023.11.19"]
[Round "5.1"]
[White "Fierro Baquero, Martha L."]
[Black "Vemparala, Nikash"]
[Result "1/2-1/2"]
[ECO "C84"]
[WhiteElo "2306"]
[BlackElo "2257"]
[Annotator "RC"]
[PlyCount "21"]
[EventDate "2023.11.17"]
[EventType "tourn"]
[EventCountry "USA"]
[SourceTitle "playchess.com"]
[Source "ChessBase"]
[SourceQuality "1"]
[TimeControl "5400+30"]

1. e4 {[%emt 0:06:59]} e5 {[%emt 0:00:19]} 2. Nf3 {[%emt 0:00:04]} Nc6 {[%emt 0:00:07]} 3. Bb5 {[%emt 0:00:05]} Nf6 {[%emt 0:00:12]} 4. d4 {[%emt 0:01:50]} exd4 {[%emt 0:17:59]} 5. O-O {[%emt 0:00:06]} Be7 {[%emt 0:07:35]} 6. Re1 {[%emt 0:00:12]} O-O {[%emt 0:03:48]} 7. e5 {[%emt 0:00:04]} Nd5 {[%emt 0:02:58]} 8. c3 {[%emt 0:00:35]} a6 {[%emt 0:03:37]} 9. Ba4 {[%emt 0:04:33]} Nb6 {[%emt 0:03:37]} 10. Nxd4 {[%emt 0:13:31]} Nxa4 {[%emt 0:04:32]} 11. Nxc6 {[%emt 0:01:10]} 1/2-1/2

[Event "Charlotte Fall IM-C 2023"]
[Site "Charlotte"]
[Date "2023.11.19"]
[Round "5.2"]
[White "Graif, William"]
[Black "Wang, Isaac"]
[Result "1/2-1/2"]
[ECO "B22"]
[WhiteElo "2289"]
[BlackElo "2377"]
[Annotator "RC"]
[PlyCount "59"]
[EventDate "2023.11.17"]
[EventType "tourn"]
[EventCountry "USA"]
[SourceTitle "playchess.com"]
[Source "ChessBase"]
[SourceQuality "1"]
[TimeControl "5400+30"]

1. e4 {[%emt 0:04:30]} c5 {[%emt 0:00:05]} 2. c3 {[%emt 0:00:17]} Nf6 {[%emt 0:01:49]} 3. e5 {[%emt 0:00:10]} Nd5 {[%emt 0:00:05]} 4. d4 {[%emt 0:00:08]} cxd4 {[%emt 0:00:15]} 5. Nf3 {[%emt 0:00:08]} Nc6 {[%emt 0:00:16]} 6. Bc4 {[%emt 0:00:14]} Nb6 {[%emt 0:00:11]} 7. Bb3 {[%emt 0:00:05]} d6 {[%emt 0:00:21]} 8. exd6 {[%emt 0:00:28]} Qxd6 {[%emt 0:00:13]} 9. O-O {[%emt 0:00:13]} Bf5 {[%emt 0:05:27]} 10. Nxd4 {[%emt 0:12:20]} Nxd4 {[%emt 0:01:23]} 11. cxd4 {[%emt 0:00:06]} e6 {[%emt 0:12:39]} 12. Nc3 {[%emt 0:05:39]} Be7 {[%emt 0:07:12]} 13. Qf3 {[%emt 0:05:47]} O-O {[%emt 0:06:11]} 14. d5 {[%emt 0:05:51]} Qd7 {[%emt 0:16:55]} 15. Bf4 {[%emt 0:17:04]} exd5 {[%emt 0:04:04]} 16. Nxd5 {[%emt 0:00:52]} Nxd5 {[%emt 0:00:51]} 17. Bxd5 {[%emt 0:01:25]} Bg4 {[%emt 0:02:11]} 18. Qb3 {[%emt 0:01:08]} Be6 {[%emt 0:12:21]} 19. Rad1 {[%emt 0:15:56]} Bxd5 {[%emt 0:00:33]} 20. Rxd5 {[%emt 0:00:08]} Qc6 {[%emt 0:04:41]} 21. Rc1 {[%emt 0:01:02]} Qf6 {[%emt 0:05:25]} 22. g3 {[%emt 0:18:55]} b6 {[%emt 0:01:35]} 23. Rc7 {[%emt 0:01:13]} Bc5 {[%emt 0:00:56]} 24. Rdd7 {[%emt 0:06:04]} a5 {[%emt 0:00:22]} 25. Qc3 {[%emt 0:01:41]} Qf5 {[%emt 0:04:27]} 26. Qd3 {[%emt 0:01:19]} Qe6 {[%emt 0:01:37]} 27. Be3 {[%emt 0:00:32]} Bxe3 {[%emt 0:01:39]} 28. Qxe3 {[%emt 0:00:10]} Qxa2 {[%emt 0:00:10]} 29. Qxb6 {[%emt 0:00:22]} Qb1+ {[%emt 0:02:26]} 30. Kg2 {[%emt 0:00:10]} 1/2-1/2

[Event "Charlotte Fall IM-C 2023"]
[Site "Charlotte"]
[Date "2023.11.19"]
[Round "5.3"]
[White "Nandhakumar, Vaseegaran"]
[Black "Guo, Ethan"]
[Result "0-1"]
[ECO "A07"]
[WhiteElo "2177"]
[BlackElo "2026"]
[Annotator "RC"]
[PlyCount "48"]
[EventDate "2023.11.17"]
[EventType "tourn"]
[EventCountry "USA"]
[SourceTitle "playchess.com"]
[Source "ChessBase"]
[SourceQuality "1"]
[TimeControl "5400+30"]

1. Nf3 {[%emt 0:00:02]} d5 {[%emt 0:00:05]} 2. g3 {[%emt 0:00:02]} Nd7 {[%emt 0:00:07]} 3. Bg2 {[%emt 0:00:08]} e5 {[%emt 0:00:07]} 4. O-O {[%emt 0:00:17]} Ngf6 {[%emt 0:00:08]} 5. d4 {[%emt 0:00:12]} e4 {[%emt 0:00:07]} 6. Ne5 {[%emt 0:00:06]} Nxe5 {[%emt 0:01:18]} 7. dxe5 {[%emt 0:00:12]} Ng4 {[%emt 0:00:08]} 8. c4 {[%emt 0:00:06]} dxc4 {[%emt 0:07:39]} 9. Qa4+ {[%emt 0:08:34]} Bd7 {[%emt 0:07:27]} 10. Qxc4 {[%emt 0:00:44]} Bc6 {[%emt 0:00:25]} 11. Bf4 {[%emt 0:14:29]} g5 {[%emt 0:05:47]} 12. f3 {[%emt 0:08:11]} Nxh2 {[%emt 0:02:39]} 13. e6 {[%emt 0:06:32]} f5 {[%emt 0:07:57]} 14. Be5 {[%emt 0:09:31]} Nxf1 {[%emt 0:00:47]} 15. Bxf1 {[%emt 0:00:29]} Rg8 {[%emt 0:01:55]} 16. fxe4 {[%emt 0:00:59]} fxe4 {[%emt 0:03:14]} 17. Nc3 {[%emt 0:00:54]} Qe7 {[%emt 0:07:56]} 18. Nxe4 {[%emt 0:09:04]} Rg6 {[%emt 0:04:08]} 19. Bg2 {[%emt 0:18:27]} Rxe6 {[%emt 0:12:57]} 20. Rf1 {[%emt 0:12:53]} Bxe4 {[%emt 0:02:52]} 21. Qxe4 {[%emt 0:00:45]} Qc5+ {[%emt 0:00:47]} 22. Rf2 {[%emt 0:01:51]} Qxe5 {[%emt 0:03:18]} 23. Qxb7 {[%emt 0:01:55]} Rd8 {[%emt 0:00:59]} 24. Bc6+ {[%emt 0:01:41]} Ke7 {[%emt 0:00:34]} 0-1

[Event "Charlotte Fall IM-C 2023"]
[Site "Charlotte"]
[Date "2023.11.19"]
[Round "5.4"]
[White "Song, Ethan"]
[Black "Lima, Darcy"]
[Result "1-0"]
[ECO "C75"]
[WhiteElo "2176"]
[BlackElo "2405"]
[Annotator "RC"]
[PlyCount "97"]
[EventDate "2023.11.17"]
[EventType "tourn"]
[EventCountry "USA"]
[SourceTitle "playchess.com"]
[Source "ChessBase"]
[SourceQuality "1"]
[TimeControl "5400+30"]

1. e4 {[%emt 0:01:19]} e5 {[%emt 0:00:18]} 2. Nf3 {[%emt 0:00:09]} Nc6 {[%emt 0:00:12]} 3. Bb5 {[%emt 0:00:24]} a6 {[%emt 0:00:19]} 4. Ba4 {[%emt 0:00:06]} Nge7 {[%emt 0:00:11]} 5. c3 {[%emt 0:03:06]} d6 {[%emt 0:02:44]} 6. d4 {[%emt 0:01:38]} Bd7 {[%emt 0:00:10]} 7. Bb3 {[%emt 0:06:50]} h6 {[%emt 0:01:38]} 8. dxe5 {[%emt 0:01:27]} dxe5 {[%emt 0:02:41]} 9. O-O {[%emt 0:03:47]} Ng6 {[%emt 0:01:40]} 10. Nbd2 {[%emt 0:01:15]} Bc5 {[%emt 0:06:52]} 11. Nc4 {[%emt 0:02:39]} O-O {[%emt 0:00:24]} 12. Ne3 {[%emt 0:02:21]} Nce7 {[%emt 0:03:41]} 13. Qc2 {[%emt 0:03:21]} c6 {[%emt 0:04:46]} 14. Nf5 {[%emt 0:04:11]} Qc8 {[%emt 0:04:34]} 15. Be3 {[%emt 0:02:46]} Bxe3 {[%emt 0:00:25]} 16. Nxe7+ {[%emt 0:01:39]} Nxe7 {[%emt 0:00:06]} 17. fxe3 {[%emt 0:00:03]} Ng6 {[%emt 0:03:57]} 18. Qf2 {[%emt 0:02:52]} Be6 {[%emt 0:00:55]} 19. Qg3 {[%emt 0:01:12]} Bxb3 {[%emt 0:00:43]} 20. axb3 {[%emt 0:00:02]} Qe6 {[%emt 0:00:34]} 21. h4 {[%emt 0:05:15]} Qxb3 {[%emt 0:03:29]} 22. h5 {[%emt 0:01:33]} Ne7 {[%emt 0:00:20]} 23. Nxe5 {[%emt 0:04:18]} Rad8 {[%emt 0:08:17]} 24. Kh2 {[%emt 0:13:51]} Qe6 {[%emt 0:21:54]} 25. Rf2 {[%emt 0:03:04]} f6 {[%emt 0:07:53]} 26. Ng4 {[%emt 0:02:22]} Kh8 {[%emt 0:00:06]} 27. Rf4 {[%emt 0:01:39]} c5 {[%emt 0:07:59]} 28. Raf1 {[%emt 0:00:53]} Nc6 {[%emt 0:00:02]} 29. Qf3 {[%emt 0:09:59]} Ne5 {[%emt 0:01:48]} 30. Nxe5 {[%emt 0:01:11]} Qxe5 {[%emt 0:00:02]} 31. Kg1 {[%emt 0:02:42]} Rfe8 {[%emt 0:00:46]} 32. Rd1 {[%emt 0:00:46]} Rd6 {[%emt 0:05:21]} 33. Kf2 {[%emt 0:02:32]} Red8 {[%emt 0:01:04]} 34. Rxd6 {[%emt 0:00:36]} Qxd6 {[%emt 0:01:34]} 35. Rf5 {[%emt 0:01:00]} Qb6 {[%emt 0:00:37]} 36. Kg3 {[%emt 0:03:13]} Re8 {[%emt 0:00:55]} 37. Kh3 {[%emt 0:01:04]} Qe6 {[%emt 0:00:28]} 38. Kg3 {[%emt 0:03:20]} Qxe4 {[%emt 0:02:49]} 39. Qxe4 {[%emt 0:00:16]} Rxe4 {[%emt 0:00:02]} 40. Kf3 {[%emt 0:00:08]} Rc4 {[%emt 0:00:15]} 41. Rf4 {[%emt 0:02:19]} Rxf4+ {[%emt 0:00:16]} 42. Kxf4 {[%emt 0:00:18]} Kg8 {[%emt 0:04:34]} 43. Ke4 {[%emt 0:00:15]} Kf7 {[%emt 0:01:53]} 44. Kd5 {[%emt 0:00:05]} c4 {[%emt 0:00:48]} 45. Kxc4 {[%emt 0:00:25]} Ke6 {[%emt 0:00:06]} 46. Kc5 {[%emt 0:00:20]} f5 {[%emt 0:01:13]} 47. Kb6 {[%emt 0:00:43]} Kd5 {[%emt 0:00:06]} 48. Kxb7 {[%emt 0:00:12]} a5 {[%emt 0:00:00]} 49. Kb6 {[%emt 0:09:34]} 1-0